[Event "5th Vera Menchik Memorial 2022"]
[Site "Prag"]
[Date "2022.06.05"]
[Round "4.7"]
[White "Jacko, Vladimir"]
[Black "Markina, Sofiia"]
[Result "1-0"]
[ECO "B85"]
[WhiteElo "2379"]
[BlackElo "1368"]
[Annotator "TA"]
[PlyCount "39"]
[EventDate "2022.06.05"]
[EventType "tourn"]
[EventCountry "CZE"]
[SourceTitle "playchess.com"]
[Source "ChessBase"]
[SourceQuality "1"]
[TimeControl "720+3"]

{[%evp 22,39,12,0,6,9,20,8,240,242,688,678,1807,1777,29985,29986,3198,2076,29991,29990]} 1. e4 {[%emt 0:00:09]} c5 {[%emt 0:00:01]} 2. Nf3 {[%emt 0:00:03]} e6 {[%emt 0:00:00]} 3. Nc3 {[%emt 0:00:02]} d6 {[%emt 0:00:02]} 4. d4 {[%emt 0:00:05]} cxd4 {[%emt 0:00:02]} 5. Nxd4 {[%emt 0:00:01]} Nf6 {[%emt 0:00:01]} 6. Be2 {[%emt 0:00:14]} Be7 {[%emt 0:00:01]} 7. O-O {[%emt 0:00:31]} O-O {[%emt 0:00:02]} 8. Be3 {[%emt 0:00:03][%cal Bc1e3,Be3d4,Bd4e5,Be5f6][%mdl 32]} Nc6 {[%emt 0:00:18]} 9. Kh1 {[%emt 0:00:10]} Bd7 {[%emt 0:00:03]} 10. f4 {[%emt 0:00:17]} Qc7 {[%emt 0:00:08] 10...a6 gains popularity.} 11. Qe1 {[%emt 0:00:23]} a6 {[%emt 0:00:06]} 12. Rd1 {[%emt 0:00:16]} Nxd4 {[%emt 0:00:16] B85: Sicilian Scheveningen: 6 Be2 a6, lines with early Be3.} (12... b5 $5 {[%cal Rb5b4]}) 13. Bxd4 {[%emt 0:00:02]} Bc6 {[%emt 0:00:04]} 14. Qg3 {[%emt 0:00:18] [#]} e5 $146 {[%emt 0:00:10] [#]} (14... b5 $11) ({Predecessor:} 14... b5 15. a3 Qb7 16. Bd3 Rad8 17. Qh3 Nxe4 18. Rde1 d5 19. f5 exf5 20. Rxf5 g6 21. Qh6 f6 22. Rf3 Rf7 23. Rh3 {0-1 (36) Strohhaeker,R (2440)-Lutz,C (2537) Germany 2018}) 15. fxe5 $18 {[%emt 0:00:06]} dxe5 {[%emt 0:00:03]} (15... Ne8 16. Bc4 dxe5) 16. Bxe5 {[%emt 0:00:13]} Qb6 {[%emt 0:00:01]} 17. Rxf6 {[%emt 0:02:08]} Bxf6 {[%emt 0:00:11]} 18. Bxf6 {[%emt 0:00:01][%csl Gf6][%cal Rg3g7]} g6 {[%emt 0:00:08]} 19. Qg5 {[%emt 0:00:10] [#] Threatening mate with Qh6.} Bb5 {[%emt 0:00:51]} 20. Nd5 {[%emt 0:00:08] Black did not feel at home in the position after the opening.  Weighted Error Value: White=0.15 (very precise) /Black=2.56} 1-0

[Event "5th Vera Menchik Memorial 2022"]
[Site "Prag"]
[Date "2022.06.05"]
[Round "4.9"]
[White "Sboev, Kirill"]
[Black "Postupa, Pavel"]
[Result "1/2-1/2"]
[ECO "D85"]
[WhiteElo "1229"]
[BlackElo "2235"]
[Annotator "TA"]
[PlyCount "30"]
[EventDate "2022.06.05"]
[EventType "tourn"]
[EventCountry "CZE"]
[SourceTitle "playchess.com"]
[Source "ChessBase"]
[SourceQuality "1"]
[TimeControl "720+3"]

{[%evp 18,30,12,16,14,0,0,0,37,0,0,0,38,0,0]} 1. d4 {[%emt 0:00:03]} Nf6 {[%emt 0:00:01]} 2. c4 {[%emt 0:00:01]} g6 {[%emt 0:00:01]} 3. Nc3 {[%emt 0:00:02]} d5 {[%emt 0:00:02]} 4. cxd5 {[%emt 0:00:03]} Nxd5 {[%emt 0:00:01]} 5. e4 {[%emt 0:00:01]} Nxc3 {[%emt 0:00:02]} 6. bxc3 {[%emt 0:00:02]} c5 {[%emt 0:00:01]} 7. Nf3 {[%emt 0:00:12]} Bg7 {[%emt 0:00:02]} 8. h3 {[%emt 0:00:11]} O-O {[%emt 0:00:05]} 9. Be2 {[%emt 0:00:06]} Nc6 {[%emt 0:00:02]} 10. Be3 {[%emt 0:00:01]} cxd4 {[%emt 0:00:16] D85: Exchange Grünfeld: Unusual White 7th moves and lines with 7 Nf3.} 11. cxd4 {[%emt 0:00:04]} Qa5+ {[%emt 0:00:02]} 12. Bd2 {[%emt 0:00:02] [#]} Qd8 $146 {[%emt 0:01:46]} (12... Qa3 $5 {[%cal Rc6d4]}) ({Predecessor:} 12... Qa3 13. d5 Ne5 14. Nxe5 Bxe5 15. O-O Bxa1 16. Qxa1 Bd7 17. Rb1 b6 18. Bb4 Qa4 19. Bd1 Qa6 20. Bxe7 Rfe8 21. Bg5 b5 22. e5 {1-0 (34) Maghsoodloo,P (2701)-Sarana,A (2666) Warsaw 2021}) 13. Be3 {[%emt 0:00:02]} Qa5+ {[%emt 0:00:25]} 14. Bd2 {[%emt 0:00:08]} Qd8 {[%emt 0:00:07]} 15. Be3 {[%emt 0:00:02]} Qa5+ {[%emt 0:00:01] Not much happened in this game.  Weighted Error Value: White=0.15 (very precise) /Black=0.07 (flawless)} 1/2-1/2

[Event "5th Vera Menchik Memorial 2022"]
[Site "Prag"]
[Date "2022.06.05"]
[Round "4.10"]
[White "Bezdek, Tomas"]
[Black "Kucera, David"]
[Result "1-0"]
[ECO "C00"]
[WhiteElo "1957"]
[BlackElo "1782"]
[Annotator "TA"]
[PlyCount "41"]
[EventDate "2022.06.05"]
[EventType "tourn"]
[EventCountry "CZE"]
[SourceTitle "playchess.com"]
[Source "ChessBase"]
[SourceQuality "1"]
[TimeControl "720+3"]

{[%evp 9,41,-8,11,0,7,0,4,3,43,44,49,43,77,56,75,34,167,170,170,115,119,116,333,330,400,405,390,372,366,316,371,189,188,131]} 1. e4 {[%emt 0:00:02]} e6 {[%emt 0:00:01]} 2. f4 {[%emt 0:00:02]} d5 {[%emt 0:00:00]} 3. e5 {[%emt 0:00:01]} c5 {[%emt 0:00:01]} 4. Nf3 {[%emt 0:00:02]} Nh6 {[%emt 0:00:01]} 5. c3 {[%emt 0:00:01]} Nf5 {[%emt 0:00:01]} 6. Bd3 {[%emt 0:00:02] C00: French: Unusual White 2nd moves.} Nc6 {[%emt 0:00:01]} 7. Na3 {[%emt 0:00:06]} Be7 {[%emt 0:00:01]} 8. Nc2 {[%emt 0:00:02] The position is equal.} h5 {[%emt 0:00:08]} 9. Bxf5 {[%emt 0:00:04]} exf5 {[%emt 0:00:01]} 10. d4 {[%emt 0:12:11][%cal Bd2d4,Bd4c5,Bc5b6][%mdl 32] [#]} O-O $146 {[%emt 0:00:13]} ({Predecessor:} 10... b6 11. Be3 Be6 12. O-O Qd7 13. Kh1 g6 14. Qe2 O-O 15. Rad1 c4 16. b3 b5 {1-0 (89) Lavendelis,E (2278)-Zaleski,L (2229) Katowice 2017}) 11. O-O {[%emt 0:00:00]} Be6 {[%emt 0:00:07]} 12. Be3 {[%emt 0:00:00]} g6 {[%emt 0:00:27]} (12... c4 $14) 13. dxc5 $18 {[%emt 0:00:00]} a5 {[%emt 0:00:01]} 14. b4 {[%emt 0:00:00]} (14. Qe2 $18) 14... axb4 $16 {[%emt 0:00:36]} 15. cxb4 {[%emt 0:00:00]} b6 $2 {[%emt 0:00:01] [#]} (15... d4 $16 {was necessary.} 16. Nfxd4 Bxa2) 16. cxb6 $18 {[%emt 0:00:00]} Nxb4 {[%emt 0:00:23]} 17. Nxb4 {[%emt 0:00:00]} Bxb4 {[%emt 0:00:01]} 18. Rb1 {[%emt 0:00:00]} Qe7 {[%emt 0:00:03]} 19. Nd4 {[%emt 0:00:00]} Bc5 {[%emt 0:00:26]} 20. Kh1 {[%emt 0:00:00]} (20. b7 $142 Rab8 21. Qb3) 20... Rfb8 {[%emt 0:00:03]} 21. Nc6 {[%emt 0:00:00] Weighted Error Value: White=0.37/Black=0.51} ({Better is} 21. Nxe6 $18 fxe6 22. Bxc5 Qxc5 23. Qb3) 1-0

[Event "5th Vera Menchik Memorial 2022"]
[Site "Prag"]
[Date "2022.06.05"]
[Round "4.12"]
[White "Bures, Jaroslav"]
[Black "Brejnik, Gustav"]
[Result "0-1"]
[ECO "B12"]
[WhiteElo "2422"]
[BlackElo "2246"]
[Annotator "TA"]
[PlyCount "96"]
[EventDate "2022.06.05"]
[EventType "tourn"]
[EventCountry "CZE"]
[SourceTitle "playchess.com"]
[Source "ChessBase"]
[SourceQuality "1"]
[TimeControl "720+3"]

{[%evp 9,96,18,5,8,16,10,17,0,4,3,0,-26,0,-43,-43,-94,-30,-34,-16,-22,-23,-179,-187,-183,-184,-168,-173,-180,-63,-83,-80,-88,-95,-108,-69,-96,-62,-97,-83,-129,-112,-125,-125,-129,-140,-192,-192,-202,-126,-143,-104,-223,-215,-230,-167,-186,0,-327,-162,-164,-56,-70,0,-189,0,-849,-839,-845,-814,-868,-852,-872,-863,-838,-826,-953,-949,-927,-914,-850,-747,-747,-733,-752,-645,-1099,-1062,-1691,-1641]} 1. e4 {[%emt 0:00:02]} c6 {[%emt 0:00:01]} 2. d4 {[%emt 0:00:09]} d5 {[%emt 0:00:01]} 3. e5 {[%emt 0:00:01]} Bf5 {[%emt 0:00:02]} 4. h4 {[%emt 0:00:01]} h5 {[%emt 0:00:05]} 5. Bd3 {[%emt 0:00:01]} Bxd3 {[%emt 0:00:02]} 6. Qxd3 {[%emt 0:00:01][%cal Oe5e6] B12: Caro-Kann: Advance Variation.} Qa5+ {[%emt 0:00:03]} 7. Nd2 {[%emt 0:00:44][%cal Oe5e6] Threatens to win with e6!} e6 $1 {[%emt 0:00:23]} 8. Ne2 {[%emt 0:00:42] The position is equal.} Qa6 {[%emt 0:00:06]} 9. c4 {[%emt 0:00:40]} Ne7 {[%emt 0:00:24] [#]} 10. Rh3 $146 {[%emt 0:00:26]} ({Predecessor:} 10. O-O c5 11. b3 Nf5 12. Nf3 Nc6 13. Bg5 dxc4 14. bxc4 cxd4 15. Nexd4 Nfxd4 16. Nxd4 Nxe5 {1-0 (37) Xu,Y (2507)-Bluebaum,M (2637) Chess.com INT 2022}) 10... Nf5 {[%emt 0:00:16]} 11. Nc3 {[%emt 0:01:35]} Be7 {[%emt 0:00:53]} 12. cxd5 {[%emt 0:00:31]} (12. Rb1 $15) 12... Qxd3 {[%emt 0:00:36]} (12... cxd5 $17 {Hoping for ...Nc6.} 13. Ne2 Qxd3 14. Rxd3 Nxh4) 13. Rxd3 $11 {[%emt 0:00:02]} cxd5 {[%emt 0:00:17] Black wants to play ...Nc6.} 14. g3 {[%emt 0:00:13]} Nc6 {[%emt 0:00:06]} 15. Nb3 {[%emt 0:00:04]} (15. Ne2 $11 {and White has nothing to worry.}) 15... Nb4 $1 $19 {[%emt 0:01:12]} 16. Rd2 {[%emt 0:00:03]} g5 {[%emt 0:00:05]} 17. a3 {[%emt 0:00:18]} Nc6 {[%emt 0:00:07]} 18. hxg5 {[%emt 0:00:09]} Bxg5 {[%emt 0:00:02]} (18... h4 $19 {aiming for ...h3.} 19. Rd1 hxg3 20. fxg3 Nxg3) 19. Rd1 {[%emt 0:00:30]} Be7 {[%emt 0:00:14]} 20. Ke2 {[%emt 0:00:15]} Kd7 {[%emt 0:00:14]} 21. Be3 {[%emt 0:00:18]} Rag8 {[%emt 0:00:08][%cal Ba8g8,Bg8g4,Bg4h4,Bh4h2][%mdl 32]} 22. Rh1 {[%emt 0:00:13]} Rg4 {[%emt 0:00:39][%cal Rf5d4]} 23. Rad1 {[%emt 0:00:12]} h4 {[%emt 0:00:20]} 24. gxh4 {[%emt 0:00:03]} (24. Kd3 $142) 24... Rhxh4 {[%emt 0:00:33]} 25. Rxh4 {[%emt 0:00:01]} Rxh4 {[%emt 0:00:09]} 26. Rd3 {[%emt 0:02:38]} b6 {[%emt 0:00:35]} 27. Nd1 {[%emt 0:00:44]} (27. Kf1 $17) 27... f6 {[%emt 0:01:54]} 28. f4 {[%emt 0:00:01]} Rh2+ {[%emt 0:01:36]} 29. Bf2 {[%emt 0:00:25]} a5 {[%emt 0:00:29] 0x0.001aa0d3f225dp-1022s more active pieces.} 30. a4 {[%emt 0:00:02]} (30. Kf1 $17) 30... Nb4 {[%emt 0:00:06]} 31. Rf3 {[%emt 0:00:32]} Nc2 {[%emt 0:00:11]} 32. Kd3 {[%emt 0:00:19] [#]} Nb4+ {[%emt 0:00:05]} ({Black should try} 32... fxe5 $1 $19 33. dxe5 Nh4) 33. Kc3 $2 {[%emt 0:00:24][%mdl 8192]} (33. Ke2 $11 {and White stays safe.}) 33... Rh8 {[%emt 0:00:08]} (33... fxe5 $142 34. dxe5 Bc5) 34. Kd2 {[%emt 0:00:13]} Rc8 {[%emt 0:00:05]} (34... fxe5 $19 {And now ...e4 would win.} 35. dxe5 Rh2) 35. Rc3 $1 $15 {[%emt 0:00:04]} Rh8 {[%emt 0:00:21]} (35... Rg8 $15 36. Ne3 Nxe3 37. Kxe3 Rh8) 36. Rf3 $1 $19 {[%emt 0:00:02] [#]} Rh2 $2 {[%emt 0:00:13]} ({Black should play} 36... fxe5 $1 $19 37. dxe5 Rh2) 37. Ne3 $2 {[%emt 0:00:16][%mdl 8192]} (37. Ke2 $11) 37... Nh4 {[%emt 0:00:27] Black is clearly winning.} 38. Ke2 {[%emt 0:00:07]} Nxf3 {[%emt 0:00:03]} 39. Kxf3 {[%emt 0:00:01]} Nd3 {[%emt 0:00:03][%csl LRb2,LRf2]} 40. Ng4 {[%emt 0:00:11]} Rh3+ {[%emt 0:00:03]} 41. Bg3 {[%emt 0:00:33]} f5 {[%emt 0:00:06]} 42. Nf6+ {[%emt 0:00:07]} Bxf6 {[%emt 0:00:02]} 43. exf6 {[%emt 0:00:01][%mdl 4096] Endgame KRN-KBN} Ke8 {[%emt 0:00:06]} 44. Nd2 {[%emt 0:00:08]} Kf7 {[%emt 0:00:03]} 45. Kg2 {[%emt 0:00:05]} Rh8 {[%emt 0:00:04]} 46. Nf3 {[%emt 0:00:02]} Kxf6 {[%emt 0:00:05]} 47. Ng5 {[%emt 0:00:02]} Nxb2 {[%emt 0:00:06]} 48. Kf3 {[%emt 0:00:08]} Nxa4 {[%emt 0:00:02] Weighted Error Value: White=0.70/Black=0.36} 0-1

[Event "5th Vera Menchik Memorial 2022"]
[Site "Prag"]
[Date "2022.06.05"]
[Round "4.13"]
[White "Burdalev, Kirill"]
[Black "Vokoun, Jan"]
[Result "1-0"]
[ECO "A45"]
[WhiteElo "2381"]
[BlackElo "2056"]
[Annotator "TA"]
[PlyCount "69"]
[EventDate "2022.06.05"]
[EventType "tourn"]
[EventCountry "CZE"]
[SourceTitle "playchess.com"]
[Source "ChessBase"]
[SourceQuality "1"]
[TimeControl "720+3"]

{[%evp 9,69,27,53,39,41,46,49,22,26,17,29,23,30,20,32,0,56,63,54,34,46,17,27,11,74,74,125,119,115,125,129,56,50,41,31,37,8,31,366,365,414,274,275,270,257,163,479,442,593,604,587,594,600,594,29991,625,612,568,29993,29994,29998,29999]} 1. d4 {[%emt 0:00:02]} Nf6 {[%emt 0:00:05]} 2. Bf4 {[%emt 0:00:02]} d6 {[%emt 0:00:09]} 3. Nc3 {[%emt 0:00:09]} Nbd7 {[%emt 0:00:17]} 4. Nf3 {[%emt 0:00:02]} a6 {[%emt 0:00:12]} 5. a4 {[%emt 0:00:27] [#]} Nh5 $146 {[%emt 0:00:32]} ({Predecessor:} 5... b6 6. e4 Bb7 7. Bc4 e6 8. Qe2 Be7 9. O-O O-O 10. e5 dxe5 11. dxe5 Nh5 {1-0 (55) Nieto Farreny,F (2024)-Monfa Escola,R (1761) Almenar 2010}) 6. Bd2 {[%emt 0:00:09] A45: Trompowsky Attack.} g6 {[%emt 0:00:56]} 7. e4 {[%emt 0:00:42]} Bg7 {[%emt 0:00:14] Against e5} 8. g3 {[%emt 0:01:10] White is slightly better.} e5 {[%emt 0:00:19]} 9. Be3 {[%emt 0:00:17]} O-O {[%emt 0:00:13]} 10. Bg2 {[%emt 0:00:05]} Re8 {[%emt 0:00:12]} 11. O-O {[%emt 0:00:02]} Nhf6 {[%emt 0:00:17]} 12. h3 {[%emt 0:00:03]} h6 {[%emt 0:00:12]} (12... exd4 $11 13. Nxd4 Nc5) 13. Qd2 $14 {[%emt 0:00:14]} Kh7 {[%emt 0:00:01]} 14. Rfe1 {[%emt 0:00:36]} Rb8 {[%emt 0:01:32]} 15. a5 {[%emt 0:00:41]} exd4 {[%emt 0:00:39]} 16. Bxd4 {[%emt 0:00:35]} Nf8 {[%emt 0:01:17]} (16... b6 $11) 17. Rad1 $16 {[%emt 0:01:06] 0x0.000bd5ab8245dp-1022s more active pieces. The black rooks are badly placed.} Bd7 {[%emt 0:01:18]} (17... Be6 $142) 18. e5 {[%emt 0:00:34]} dxe5 {[%emt 0:00:21]} 19. Bxe5 {[%emt 0:00:11]} Qc8 {[%emt 0:00:14]} 20. g4 {[%emt 0:00:39]} ({White should play} 20. Qd4 $16 Ne6 21. Qh4) 20... Bc6 $14 {[%emt 0:00:19]} 21. g5 {[%emt 0:01:39]} hxg5 {[%emt 0:03:47]} 22. Nxg5+ {[%emt 0:00:02]} Kg8 {[%emt 0:00:00]} 23. Qf4 $36 {[%emt 0:00:29][%mdl 2048] Inhibits Ne4. White has good play.} Bxg2 {[%emt 0:00:00][%mdl 8192] This costs Black the game.} (23... Ne6 $14 24. Nxe6 Nh5) 24. Bxf6 $18 {[%emt 0:00:03] Dancing on a razor blade.} ({Worse is} 24. Kxg2 Ne6 25. Nxe6 Nh5 $11) 24... Bxh3 {[%emt 0:00:00] [#] Threatens to win with ...Qg4+.} 25. Bxg7 {[%emt 0:00:03][%csl Gg5][%cal Rf4f7]} Qg4+ {[%emt 0:00:00]} 26. Qxg4 {[%emt 0:00:16]} Bxg4 {[%emt 0:00:00]} 27. f3 {[%emt 0:00:17]} Bf5 $2 {[%emt 0:00:00]} (27... Bxf3 {is tougher.} 28. Nxf3 Rxe1+ 29. Rxe1 Kxg7) 28. Be5 {[%emt 0:00:53] Strongly threatening Nd5.} Rbc8 {[%emt 0:00:00]} 29. Nd5 {[%emt 0:00:09] White wants to mate with Nf6+.} Nd7 {[%emt 0:00:14]} 30. Nf6+ {[%emt 0:00:36]} Nxf6 {[%emt 0:00:02]} 31. Bxf6 {[%emt 0:00:01]} Bxc2 {[%emt 0:00:06] [#]} 32. Rc1 {[%emt 0:00:15]} (32. Kf2 $142 $1 Re6 (32... Re2+ 33. Kxe2) 33. Nxe6 Bxd1 34. Nc5 Rd8 35. Rh1 Rd2+ 36. Kg3 Rg2+ 37. Kxg2 Bxf3+ 38. Kxf3 Kf8 39. Rh8#) 32... Rxe1+ {[%emt 0:00:05]} 33. Rxe1 {[%emt 0:00:02] White threatens Kf2 and mate.} Bb3 {[%emt 0:00:01]} 34. Kf2 {[%emt 0:00:13]} b6 {[%emt 0:00:04]} 35. Rh1 {[%emt 0:00:05] Weighted Error Value: White=0.46/Black=0.88} 1-0

[Event "5th Vera Menchik Memorial 2022"]
[Site "Prag"]
[Date "2022.06.05"]
[Round "4.14"]
[White "Hrabusa, Matej"]
[Black "Borkovec, Milan"]
[Result "1-0"]
[ECO "B07"]
[WhiteElo "2361"]
[BlackElo "2188"]
[Annotator "TA"]
[PlyCount "152"]
[EventDate "2022.06.05"]
[EventType "tourn"]
[EventCountry "CZE"]
[SourceTitle "playchess.com"]
[Source "ChessBase"]
[SourceQuality "1"]
[TimeControl "720+3"]

{[%evp 9,152,21,22,22,22,13,23,5,5,5,14,13,19,10,18,9,20,34,35,-23,-22,-27,-27,-21,79,78,87,73,245,164,228,222,511,206,206,206,206,189,183,128,109,84,83,40,20,29,138,138,138,138,165,138,138,138,209,202,210,138,175,100,113,121,138,138,166,138,189,183,182,171,456,456,1039,463,447,431,435,353,255,239,425,291,689,687,681,681,681,672,660,660,646,645,609,440,610,434,604,576,866,415,866,866,866,763,854,850,816,755,711,675,965,762,2364,2416,1801,1674,1633,1506,1273,1272,1256,1243,29973,29974,29975,29974,29974,29975,29975,29976,29976,29977,29977,29978,29978,29978,29978,29979,29978,29979,29980,29981,29981,29982,29993]} 1. d4 {[%emt 0:00:02]} Nf6 {[%emt 0:00:02]} 2. Nf3 {[%emt 0:00:01]} g6 {[%emt 0:00:04]} 3. Nbd2 {[%emt 0:00:01]} Bg7 {[%emt 0:00:01]} 4. e4 {[%emt 0:00:02]} d6 {[%emt 0:00:02]} 5. Bb5+ {[%emt 0:00:02]} c6 {[%emt 0:00:01]} 6. Bd3 {[%emt 0:00:01] B07: Pirc Defence: Miscellaneous Systems.} O-O {[%emt 0:00:03]} 7. O-O {[%emt 0:00:02]} Nbd7 {[%emt 0:00:08]} 8. c3 {[%emt 0:00:02] White has an edge.} e5 {[%emt 0:00:35]} 9. h3 {[%emt 0:00:05]} Re8 {[%emt 0:00:12]} 10. Re1 {[%emt 0:00:02]} (10. Nc4 {with more complications.} d5 11. Nd6 Re7 12. Nxe5 Nxe5 13. dxe5 Nxe4 14. Bxe4 Rxe5 15. Bf4) 10... Qc7 {[%emt 0:00:03]} 11. a4 {[%emt 0:00:21]} b6 {[%emt 0:01:22]} 12. Nf1 {[%emt 0:00:18]} a6 {[%emt 0:00:04]} 13. Ng3 {[%emt 0:00:02]} Bb7 {[%emt 0:00:02] [#]} 14. h4 $146 {[%emt 0:00:39]} (14. Be3 $14) ({Predecessor:} 14. Bg5 h6 15. Bd2 b5 16. b4 Nb6 17. a5 Nbd7 18. Qc1 Kh7 19. c4 Rac8 20. dxe5 dxe5 {1-0 (35) Carlsen,M (2835)-Amonatov,F (2614) St Petersburg 2018}) 14... exd4 $11 {[%emt 0:02:02]} 15. cxd4 {[%emt 0:00:08][%cal Oh4h5]} c5 $1 {[%emt 0:00:04]} 16. Bf4 {[%emt 0:01:01]} c4 {[%emt 0:01:41]} (16... cxd4 $11 17. Rc1 Qd8) 17. Rc1 $16 {[%emt 0:00:19]} b5 {[%emt 0:00:01]} 18. b3 {[%emt 0:00:40][%cal Rb3c4]} Qb6 $2 {[%emt 0:00:04]} (18... c3 $16) 19. bxc4 $18 {[%emt 0:00:05]} bxc4 {[%emt 0:00:01]} 20. Bxc4 {[%emt 0:00:14] Hoping for Rb1.} ({But not} 20. Rxc4 $6 d5 21. a5 Qd8 $16) 20... Nxe4 $2 {[%emt 0:01:37]} (20... d5) 21. Nxe4 {[%emt 0:00:08]} (21. Rb1 $142 Nxg3 22. Rxb6 Nxb6 23. Bxf7+ Kxf7 24. Bxg3) 21... Bxe4 {[%emt 0:00:15] [#]} 22. Bxf7+ {[%emt 0:00:26][%mdl 512]} Kxf7 {[%emt 0:00:02]} 23. Ng5+ {[%emt 0:00:06]} Kg8 {[%emt 0:00:00]} 24. Nxe4 {[%emt 0:00:16]} (24. Rxe4 $18 Rxe4 25. Nxe4) 24... Qxd4 $16 {[%emt 0:00:37]} 25. Qxd4 {[%emt 0:00:49]} (25. Qb3+ {is interesting.} d5 26. Rcd1 Nc5 27. Rxd4 Nxb3 28. Rxd5 Rac8 29. Kf1) 25... Bxd4 {[%emt 0:00:02]} 26. Nxd6 {[%emt 0:00:02]} Rxe1+ {[%emt 0:00:35]} 27. Rxe1 {[%emt 0:00:01]} Bf6 {[%emt 0:00:15]} (27... Nc5 $1 $11) 28. g3 {[%emt 0:00:16] White is more active.} Nc5 {[%emt 0:00:13]} 29. Ne4 {[%emt 0:00:28]} Bd4 {[%emt 0:00:18]} 30. Nxc5 {[%emt 0:00:10]} Bxc5 $18 {[%emt 0:00:01][%mdl 4096] Endgame KRB-KRB} 31. Rc1 {[%emt 0:00:03]} Bb6 {[%emt 0:00:29]} (31... Bb4 $16 32. Be5 Rd8) 32. Rc6 {[%emt 0:00:04]} Bd4 {[%emt 0:00:11]} 33. Rc7 {[%emt 0:00:18]} Re8 {[%emt 0:00:15] [#]} 34. Rd7 {[%emt 0:00:07]} (34. Rc4 $1 $18 {[%cal Rc4d4]} Rd8 35. Kg2) 34... Bc3 {[%emt 0:00:16]} 35. Ra7 {[%emt 0:00:18]} Re6 {[%emt 0:00:04]} 36. Be3 {[%emt 0:00:09]} a5 {[%emt 0:00:14]} 37. Rc7 {[%emt 0:00:03]} Be5 {[%emt 0:00:19]} (37... Be1 $16 {was worth a try.} 38. Kf1 Bb4) 38. Rc8+ {[%emt 0:00:08]} Kf7 {[%emt 0:00:03][%cal Oe5g3]} 39. Kg2 {[%emt 0:00:03] Strongly threatening Rc5.} Rd6 $2 {[%emt 0:00:20]} (39... Bf6 40. Kf3 Re8 41. Rc7+ Re7) 40. Rc5 {[%emt 0:00:06]} Ke6 {[%emt 0:00:29] [#]} (40... Bd4 $142) 41. Rxa5 {[%emt 0:00:07]} (41. Rxe5+ $142 $1 {[%mdl 512]} Kxe5 42. Bf4+ Ke6 43. Bxd6 Kxd6 44. g4) 41... Bc3 {[%emt 0:00:05]} 42. Rc5 {[%emt 0:00:07]} Bb4 {[%emt 0:00:03]} 43. Rc4 {[%emt 0:00:07]} Ba5 {[%emt 0:00:02]} 44. Kf3 {[%emt 0:00:07]} h5 $2 {[%emt 0:00:23]} (44... Ra6 {keeps fighting.} 45. Ke2 Kd5 46. Rc5+ Ke6) 45. Rc5 {[%emt 0:00:09]} Bb6 {[%emt 0:00:05]} (45... Ra6 46. Ke4 Kd7 47. Rd5+ Kc8) 46. Rg5 {[%emt 0:00:03]} Kf6 {[%emt 0:00:07]} 47. Bxb6 {[%emt 0:00:05]} Rxb6 {[%emt 0:00:01] KR-KR} 48. Rb5 {[%emt 0:00:18] Prevents Rb3+.} Rc6 {[%emt 0:00:01]} 49. Rb3 {[%emt 0:00:04] Inhibits Rc3+.} Rc5 {[%emt 0:00:07]} 50. Ra3 {[%emt 0:00:02]} Ra5 {[%emt 0:00:01]} 51. Ke4 {[%emt 0:00:05]} Ke6 {[%emt 0:00:02]} 52. f3 {[%emt 0:00:14]} Kf6 {[%emt 0:00:03]} 53. g4 {[%emt 0:00:03][%cal Bg3g4,Bg4g5][%mdl 32]} Ke6 {[%emt 0:00:06]} 54. Kf4 {[%emt 0:00:12]} (54. g5 $142 Ke7 55. Kd4) 54... Kf6 {[%emt 0:00:10]} (54... Kf7 $142 55. Ra2 Ke6 56. Re2+ Kf6) 55. g5+ {[%emt 0:00:07]} Ke6 {[%emt 0:00:01]} 56. Ke4 {[%emt 0:00:01]} Kd6 {[%emt 0:00:07]} 57. Rd3+ {[%emt 0:00:05]} Ke6 {[%emt 0:00:01]} 58. Rd4 {[%emt 0:00:02]} Re5+ {[%emt 0:00:04]} 59. Kd3 {[%emt 0:00:05] White wants to mate with Re4.} Rf5 {[%emt 0:00:03]} 60. f4 {[%emt 0:00:06]} Ra5 {[%emt 0:00:01]} 61. Kc3 {[%emt 0:00:03] Black must now prevent Kb4.} Kf5 {[%emt 0:00:01]} 62. Kb4 {[%emt 0:00:02]} Ra8 {[%emt 0:00:02]} 63. a5 {[%emt 0:00:15] Kb5 would kill now.} Kg4 {[%emt 0:00:02]} 64. f5+ {[%emt 0:00:26]} Kxf5 {[%emt 0:00:02]} 65. Kb5 {[%emt 0:00:01] Intending a6 and mate.} Rb8+ {[%emt 0:00:04]} 66. Kc6 {[%emt 0:00:04] White mates.} Rb1 {[%emt 0:00:07]} 67. Ra4 {[%emt 0:00:04]} Rc1+ {[%emt 0:00:02]} 68. Kd7 {[%emt 0:00:06]} Rd1+ {[%emt 0:00:02]} 69. Ke7 {[%emt 0:00:02]} Re1+ {[%emt 0:00:01]} 70. Kf7 {[%emt 0:00:01]} Rc1 {[%emt 0:00:04]} 71. a6 {[%emt 0:00:03][%cal Ba5a6,Ba6a7][%mdl 32]} Rc7+ {[%emt 0:00:01]} 72. Ke8 {[%emt 0:00:02]} Ke6 {[%emt 0:00:01]} 73. Kd8 {[%emt 0:00:07]} Ra7 {[%emt 0:00:17]} 74. Kc8 {[%emt 0:00:02]} Kd6 {[%emt 0:00:01]} 75. Kb8 {[%emt 0:00:03]} Rf7 {[%emt 0:00:02]} 76. a7 {[%emt 0:00:04]} Kd5 {[%emt 0:00:09] Weighted Error Value: White=0.34/Black=0.53} 1-0